bitfinex-derivatives/quotes_ETHF0:USTF0_20240910
["timestamp","ask_amount","ask_price","bid_price","bid_amount"]
[1725980828557,0.87201,2333.0,2332.4,40.8]
[1725980828846,0.4434,2333.0,2332.8,0.42863]
[1725980829047,0.4434,2333.0,2332.4,40.8]
[1725980829247,0.42864,2332.9,2332.7,0.42866]
[1725980829551,0.4434,2333.0,2332.8,0.42864]
[1725980829753,0.42861,2333.0,2332.8,0.42864]
[1725980829947,0.4286,2333.1,2332.8,0.42864]
[1725980830141,0.4564,2333.2,2332.4,41.87177]
[1725980830347,0.4564,2333.2,2333.0,0.42859]
[1725980830548,0.88498,2333.2,2333.0,0.42861]
[1725980830750,0.42859,2333.1,2332.5,1.07175]
[1725980830953,0.42859,2333.1,2332.9,0.42862]
[1725980831157,0.4564,2333.2,2332.4,45.34406767]
[1725980831350,4.144,2333.9,2332.5,3.7]
[1725980831554,4.144,2333.9,2332.4,47.58800767]
[1725980831555,0.4708,2333.8,2333.7,0.42848]
[1725980831944,0.9066,2334.3,2333.4,0.21132135]
[1725980832152,0.4708,2334.2,2333.3,1.07139]
[1725980832349,0.4708,2334.2,2334.1,0.4284]
[1725980832561,0.4708,2334.2,2333.4,3.7]
[1725980832562,4.144,2334.7,2333.6,1.07125]
[1725980832763,0.943,2334.6,2333.8,0.42844]
[1725980833055,0.943,2334.6,2333.5,4.186]
[1725980833056,0.42837,2334.3,2333.9,41.22844]
[1725980833355,0.42837,2334.3,2334.0,0.42842]
[1725980833556,11.70939547,2334.6,2333.9,40.8]
[1725980833945,0.42838,2334.3,2333.9,41.22843]
[1725980834153,11.70939547,2334.6,2333.9,40.8]
[1725980834346,0.42837,2334.3,2333.9,41.22843]
[1725980834548,11.70939547,2334.6,2333.5,4.186]
[1725980834549,11.70939547,2334.6,2333.6,1.07124]
[1725980834750,0.42834,2334.5,2334.1,0.4284]
[1725980835052,0.42836,2334.4,2334.0,0.42841]
[1725980835254,11.70939547,2334.6,2334.1,0.4284]
[1725980835452,0.42834,2334.5,2333.7,40.8]
[1725980835761,11.70939547,2334.6,2333.7,40.8]
[1725980835958,12.13771547,2334.6,2334.2,0.42837]
[1725980836151,0.42835,2334.5,2334.1,0.4284]
[1725980836448,12.13771547,2334.6,2333.7,40.8]
[1725980836646,12.13771547,2334.6,2334.2,0.42837]
[1725980836846,0.42834,2334.5,2334.2,0.42837]
[1725980837052,11.70939547,2334.6,2333.7,40.8]
[1725980837053,0.42838,2334.3,2333.7,40.8]
[1725980837348,15.40939547,2334.6,2334.1,0.42839]
[1725980837546,0.42835,2334.4,2334.1,0.42839]
[1725980837956,0.42834,2334.5,2334.2,0.42838]
[1725980838159,0.42835,2334.4,2334.1,0.42839]
[1725980838454,0.42835,2334.4,2333.7,42.08814126]
[1725980838455,0.42839,2334.2,2333.9,0.42843]
[1725980838661,0.42839,2334.2,2333.7,41.01694126]
[1725980838662,0.42839,2334.2,2334.0,0.42842]
[1725980838851,0.42838,2334.3,2334.0,0.42842]
[1725980839156,0.42838,2334.3,2334.1,0.4284]
[1725980839456,15.40939547,2334.6,2334.2,0.42838]
[1725980839659,11.70939547,2334.6,2334.4,0.42833]
[1725980840147,12.13771547,2334.6,2334.4,0.42833]
[1725980840545,11.70939547,2334.6,2334.0,1.07106]
[1725980840745,1.37131,2334.6,2334.4,0.42834]
[1725980840952,0.943,2334.6,2334.4,0.42834]
[1725980841159,1.37132,2334.6,2334.4,0.42834]
[1725980841562,0.42834,2334.5,2333.8,1.07116]
[1725980841858,0.42834,2334.5,2334.3,0.42836]
[1725980842355,4.284,2334.5,2333.7,42.08813126]
[1725980842556,0.42838,2334.3,2334.1,0.4284]
[1725980842858,0.42837,2334.3,2334.1,0.4284]
[1725980843363,1.07088,2334.4,2333.7,0.21694126]
[1725980843550,1.07093,2334.3,2333.5,4.186]
[1725980843753,1.07097,2334.2,2333.6,41.01153862]
[1725980843954,0.42845,2333.9,2333.7,0.42846]
[1725980844958,0.8105,2334.1,2333.3,5.46827721]
[1725980845160,1.23892,2334.1,2333.9,0.42843]
[1725980845460,0.42844,2334.0,2333.8,0.42845]
[1725980845662,0.42843,2334.0,2333.9,0.42844]
[1725980845846,0.8105,2334.1,2334.0,0.42842]
[1725980846053,0.4019,2334.1,2334.0,0.42842]
[1725980847263,0.4019,2334.1,2333.9,0.42843]
[1725980847559,1.48806,2334.5,2333.5,41.87128]
[1725980847560,0.42838,2334.3,2334.1,0.42839]
[1725980847765,0.8267,2334.5,2334.3,0.42836]
[1725980847965,0.4284,2334.2,2334.1,0.4284]
[1725980848162,1.07088,2334.4,2334.1,0.4284]
[1725980848356,0.4284,2334.2,2334.0,0.42842]
[1725980848958,0.8267,2334.5,2333.7,1.0712]
[1725980849161,0.42836,2334.4,2333.9,1.07107]
[1725980849355,0.8267,2334.5,2333.6,1.07123]
[1725980849555,0.42841,2334.1,2333.6,1.07123]
[1725980850363,0.4284,2334.2,2333.7,1.0712]
[1725980850569,0.4284,2334.2,2334.1,0.4284]
[1725980850862,0.42838,2334.3,2334.1,0.4284]
[1725980851066,0.85398,2334.3,2334.1,0.42839]
[1725980851572,0.85398,2334.3,2334.2,0.42839]
[1725980851762,0.4256,2334.3,2334.2,0.42839]
[1725980852754,0.8267,2334.5,2334.4,0.42835]
[1725980853159,5.1107,2334.5,2334.4,0.42835]
[1725980853355,5.53905,2334.5,2334.3,0.42835]
[1725980853559,0.42835,2334.4,2333.9,1.07109]
[1725980853772,0.42838,2334.3,2333.8,1.07114]
[1725980853960,0.8267,2334.5,2334.3,0.42836]
[1725980854263,0.42835,2334.4,2334.3,0.42836]
[1725980854665,0.4095,2334.5,2334.4,0.42835]
[1725980854858,0.42828,2334.8,2334.7,0.42829]
[1725980855059,0.42829,2334.7,2334.6,0.4283]
[1725980855569,0.42832,2334.6,2334.5,0.42832]
[1725980855865,1.92727,2334.9,2334.3,0.42836]
[1725980855866,0.42835,2334.4,2334.3,0.42836]
[1725980856061,0.86064,2334.5,2334.3,0.42836]
[1725980856263,0.42835,2334.4,2334.3,0.42836]
[1725980856462,0.86064,2334.5,2334.0,1.07106]
[1725980856668,0.86064,2334.5,2334.4,0.42835]
[1725980857554,0.4323,2334.5,2334.4,0.42835]
[1725980859355,1.92727,2334.9,2334.8,0.42828]
[1725980859356,0.8566,2334.9,2334.8,0.42828]
[1725980859660,1.28487,2334.9,2334.5,0.21595574]
[1725980860161,0.8566,2334.9,2334.6,0.4283]
[1725980860356,0.42828,2334.8,2334.7,0.42829]
[1725980860657,0.42828,2334.8,2334.3,1.07091]
[1725980860859,0.85263,2335.1,2334.5,1.07083]
[1725980861069,0.4244,2335.1,2335.0,0.42824]
[1725980861460,0.411,2335.2,2335.1,0.42822]
[1725980861659,4.57216,2335.5,2334.8,4.7707]
[1725980861660,4.5625,2335.5,2334.8,4.7707]
[1725980861869,4.5625,2335.5,2334.5,0.21745558]
[1725980861870,4.144,2336.4,2335.5,1.07038]
[1725980862061,0.4185,2336.4,2335.5,1.07038]
[1725980862258,0.4185,2336.4,2336.1,0.42803]
[1725980862461,0.4185,2336.4,2336.0,0.42805]
[1725980862661,0.4185,2336.4,2335.9,0.21107054]
[1725980862857,0.35351391,2336.7,2336.2,3.7]
[1725980863066,4.9962,2337.3,2336.3,0.428]
[1725980863267,0.4279,2336.9,2336.3,0.42799]
[1725980863466,0.42786,2337.1,2335.9,4.39659916]
[1725980863768,0.42795,2336.6,2336.0,0.42804]
[1725980863966,0.4185,2336.5,2336.0,0.42804]
[1725980864161,0.84647,2336.5,2336.0,0.42805]
[1725980864370,0.4185,2336.5,2336.0,0.42805]
[1725980864768,0.4185,2336.5,2335.9,0.21059916]
[1725980865071,0.84647,2336.5,2335.7,4.186]
[1725980865268,0.4185,2336.5,2335.7,4.39867849]
[1725980865463,0.84647,2336.5,2335.9,0.42806]
[1725980865663,0.4185,2336.5,2335.7,4.39867849]
[1725980866178,0.84646,2336.5,2335.9,0.42806]
[1725980866568,0.84646,2336.5,2335.7,4.39867849]
[1725980866569,0.4185,2336.5,2335.7,0.64078849]
[1725980866767,0.42801,2336.3,2335.7,0.64078849]
[1725980867467,0.42799,2336.4,2335.8,0.42808]
[1725980867667,0.4185,2336.5,2335.4,7.886]
[1725980867869,0.42802,2336.3,2335.7,0.4281]
[1725980868176,0.42801,2336.3,2335.8,0.64508314]
[1725980869869,0.42799,2336.4,2335.8,0.21700314]
[1725980870170,0.4185,2336.5,2335.4,3.7]
[1725980870367,0.42799,2336.4,2335.9,0.42806]
[1725980870558,0.4185,2336.5,2336.0,0.64436805]
[1725980870762,0.42798,2336.4,2335.5,5.25638]
[1725980870965,0.42799,2336.4,2336.0,0.42805]
[1725980871165,0.42799,2336.4,2336.0,0.64180627]
[1725980871662,0.42798,2336.4,2336.0,0.64179627]
[1725980871872,0.42798,2336.4,2336.0,0.42804]
[1725980872463,0.42798,2336.4,2336.0,0.64565005]
[1725980872675,0.4185,2336.5,2336.2,0.42801]
[1725980872969,0.3949,2336.7,2335.7,3.7]
[1725980873169,0.3949,2336.7,2336.1,0.42803]
[1725980873170,0.42797,2336.5,2336.1,0.42803]
[1725980873570,0.42797,2336.5,2336.2,0.42802]
[1725980873772,0.82866,2336.6,2336.2,0.42802]
[1725980874268,0.42796,2336.5,2336.2,0.42802]
[1725980874770,0.82865,2336.6,2336.3,0.428]
[1725980875174,0.82865,2336.6,2336.2,0.42801]
[1725980875576,0.4007,2336.6,2336.1,0.42803]
[1725980875876,0.42797,2336.5,2336.1,0.42803]
[1725980876180,0.42799,2336.4,2336.1,0.42803]
[1725980876568,0.4007,2336.6,2336.0,0.42804]
[1725980876872,0.4007,2336.6,2336.1,0.42803]
[1725980876873,0.42799,2336.4,2336.1,0.42803]
[1725980877174,0.42801,2336.3,2336.0,0.42805]
[1725980877379,1.4706,2336.6,2335.8,0.42809]
[1725980877570,1.4706,2336.6,2335.7,0.21820953]
[1725980877571,0.42807,2336.0,2335.7,0.4281]
[1725980877877,4.1007,2336.6,2336.1,0.42803]
[1725980877878,0.42799,2336.4,2336.1,0.42803]
[1725980878069,0.428,2336.3,2336.0,0.42804]
[1725980878373,0.8178,2336.6,2335.2,0.34751804]
[1725980878571,0.4382,2336.2,2335.3,49.20874228]
[1725980878771,0.4382,2336.2,2336.0,0.42805]
[1725980878975,0.86622,2336.2,2336.0,0.42805]
[1725980879274,1.88771,2336.6,2336.0,4.2808]
[1725980879275,0.42798,2336.5,2336.0,4.2808]
[1725980879471,0.8178,2336.6,2335.7,1.07028]
[1725980879677,0.8178,2336.6,2336.2,0.42802]
[1725980879975,0.428,2336.3,2335.6,3.7]
[1725980880174,0.42801,2336.3,2336.0,0.42805]
[1725980880375,1.06992,2336.5,2336.0,0.42805]
[1725980880765,0.42801,2336.3,2336.0,0.42805]
[1725980880974,1.06996,2336.4,2335.6,3.7]
[1725980881178,1.06996,2336.4,2335.5,1.07036]
[1725980881377,0.42805,2336.1,2335.8,0.42808]
[1725980881682,10.6225432,2336.5,2335.6,3.7]
[1725980881977,10.6225432,2336.5,2335.8,1.07024]
[1725980882178,0.42796,2336.5,2336.2,0.428]
[1725980882377,0.42799,2336.4,2336.1,0.42802]
[1725980882677,0.8178,2336.6,2335.9,1.38217]
[1725980882872,0.428,2336.4,2335.9,0.312]
[1725980883076,0.42801,2336.3,2336.1,0.42803]
[1725980883273,1.06992,2336.5,2335.3,50.31045747]
[1725980883475,4.77006,2336.2,2335.3,45.19694228]
[1725980883675,3.7,2336.2,2335.1,0.312]
[1725980883877,0.42815,2335.5,2335.2,0.42819]
[1725980884077,0.42815,2335.5,2335.0,0.20972507]
[1725980884078,1.07025,2335.8,2334.8,4.186]
[1725980884284,0.42816,2335.5,2335.2,0.4282]
[1725980884591,0.42813,2335.6,2335.2,0.42819]
[1725980884782,0.42815,2335.5,2335.2,0.42819]
[1725980884989,0.42819,2335.3,2334.8,4.40041418]
[1725980885187,0.42818,2335.4,2334.8,4.40041418]
[1725980885583,0.42818,2335.4,2335.0,0.42823]
[1725980885883,0.4282,2335.3,2334.9,0.42824]
[1725980886076,0.4282,2335.3,2334.8,4.3974594]
[1725980886276,3.7,2335.6,2334.8,4.3974594]
[1725980886277,0.42821,2335.2,2334.8,4.3974594]
[1725980886477,0.4282,2335.3,2334.9,0.42825]
[1725980886684,0.42821,2335.2,2334.8,4.8257194]
[1725980886871,0.42821,2335.2,2334.8,4.3974594]
[1725980887276,0.42821,2335.2,2334.9,0.42825]
[1725980887682,0.42819,2335.3,2335.0,0.42824]
[1725980887991,1.07038,2335.5,2334.8,0.6397294]
[1725980888486,1.07038,2335.5,2334.8,0.2114594]
[1725980888689,0.8158,2335.7,2334.7,45.57071]
[1725980888887,0.42814,2335.6,2335.3,0.42818]
[1725980889389,1.24392,2335.7,2335.1,0.21345734]
[1725980889578,0.8158,2335.7,2335.0,4.77058]
[1725980889890,0.8158,2335.7,2335.4,0.42815]
[1725980889891,1.24392,2335.7,2335.4,0.42815]
[1725980890380,0.8158,2335.7,2335.0,4.98298773]
[1725980890683,1.24391,2335.7,2335.4,0.42815]
[1725980890890,0.8158,2335.7,2335.0,4.98298773]
[1725980891186,0.4102,2335.7,2335.6,0.42813]
[1725980891483,0.42814,2335.6,2335.3,0.42818]
[1725980891785,0.83832,2335.7,2335.4,0.42816]
[1725980891979,0.83832,2335.7,2335.4,0.6379544]
[1725980892374,0.4102,2335.7,2335.5,0.42815]
[1725980892788,0.42814,2335.6,2335.3,0.64182263]
[1725980892981,0.42815,2335.5,2335.2,0.42819]
[1725980893177,0.4102,2335.7,2334.7,40.8]
[1725980893178,1.07033,2335.6,2334.7,40.8]
[1725980893483,1.07055,2335.2,2334.3,1.10426684]
[1725980893681,0.42829,2334.8,2334.5,0.42833]
[1725980893984,0.4283,2334.7,2334.4,0.42834]
[1725980894189,1.07062,2335.0,2334.2,40.8]
[1725980894190,0.3978,2334.9,2334.2,40.8]
[1725980894482,0.4283,2334.7,2334.3,0.42836]
[1725980894987,0.42833,2334.6,2334.2,41.44532064]
[1725980895386,0.3978,2334.9,2334.3,0.42836]
[1725980895584,0.3978,2334.9,2334.2,41.44531064]
[1725980895789,0.3978,2334.9,2334.2,41.44532064]
[1725980895988,10.61023366,2334.8,2334.3,0.42837]
[1725980896190,0.42831,2334.7,2334.3,0.42837]
[1725980896389,10.61023366,2334.8,2334.2,0.21694064]
[1725980896686,0.3978,2334.9,2334.3,40.8]
[1725980896880,0.4295,2335.1,2334.4,0.5147]
[1725980897080,0.85773,2335.1,2334.7,0.42828]
[1725980897280,0.4295,2335.1,2334.8,0.42826]
[1725980897586,0.42818,2335.4,2334.4,5.28554]
[1725980897785,0.5451,2335.5,2335.0,0.42823]
[1725980897985,0.42818,2335.4,2335.0,0.42823]
[1725980898187,11.83223312,2335.5,2335.1,0.42821]
[1725980898386,11.83223312,2335.5,2335.0,0.42824]
[1725980898387,0.42818,2335.4,2335.0,0.42824]
[1725980898583,0.5451,2335.5,2334.7,3.7]
[1725980898781,0.5451,2335.5,2335.3,0.42817]
[1725980899096,0.5451,2335.5,2334.7,3.7]
[1725980899391,0.97325,2335.5,2335.2,0.42819]
[1725980899587,0.5451,2335.5,2335.1,0.42821]
[1725980899795,0.5451,2335.5,2334.7,4.80426684]
[1725980899986,0.5451,2335.5,2335.2,0.42819]
[1725980899987,0.97326,2335.5,2335.2,0.42819]
[1725980900586,0.97326,2335.5,2335.3,0.42818]
[1725980900587,0.5451,2335.5,2335.3,0.42818]
[1725980900784,3.7,2336.3,2335.0,3.7]
[1725980900785,4.144,2336.2,2335.0,3.7]
[1725980901091,0.42807,2335.9,2335.6,0.42812]
[1725980901593,0.42809,2335.9,2335.6,0.42813]
[1725980901987,5.726,2336.2,2335.1,0.5008]
[1725980902199,0.42809,2335.9,2335.6,0.42812]
[1725980902496,0.42807,2335.9,2335.6,0.42812]
[1725980903494,0.93017,2336.0,2335.7,0.42811]
[1725980903696,0.5021,2336.0,2335.8,0.42809]
[1725980903907,0.5221,2336.1,2335.9,0.42807]
[1725980904082,0.5221,2336.1,2336.0,0.42806]
[1725980904284,0.5119,2336.2,2335.5,0.21703832]
[1725980904285,0.5119,2336.2,2336.1,0.42804]
[1725980904491,0.42799,2336.4,2335.6,5.87455684]
[1725980904689,0.42799,2336.4,2336.2,0.42802]
[1725980904897,0.42799,2336.4,2336.1,0.42803]
[1725980905194,0.42799,2336.4,2336.2,0.42802]
[1725980905399,0.42799,2336.4,2336.1,0.42803]
[1725980906101,1.0451,2336.6,2336.0,0.42806]
[1725980906294,1.47306,2336.6,2336.3,0.42799]
[1725980906599,1.47306,2336.6,2336.4,0.42798]
[1725980906792,0.42799,2336.4,2336.2,0.42801]
[1725980907093,0.42802,2336.2,2336.0,0.42805]
[1725980907297,1.06996,2336.4,2335.7,1.63496684]
[1725980907487,1.06996,2336.4,2335.7,0.5307]
[1725980907789,1.0451,2336.6,2336.0,0.42805]
[1725980907994,1.0451,2336.6,2335.8,1.07024]
[1725980907995,0.428,2336.4,2335.8,1.07024]
[1725980908192,0.428,2336.3,2335.8,1.07024]
[1725980908490,2.11499,2336.6,2335.6,1.10426684]
[1725980908491,1.06996,2336.4,2335.6,1.10426684]
[1725980908693,0.4281,2335.8,2335.6,0.42812]
[1725980908895,0.42809,2335.9,2335.7,0.42811]
[1725980909098,0.42809,2335.9,2335.3,1.31296684]
[1725980909099,0.42809,2335.8,2335.6,0.42812]
[1725980909284,0.42808,2335.9,2335.7,0.42811]
[1725980909694,1.0151,2336.0,2335.6,0.21457417]
[1725980909988,1.0151,2336.0,2335.9,0.42807]
[1725980910189,1.0151,2336.0,2335.5,2.17461684]
[1725980910190,1.0151,2336.0,2335.5,1.32278745]
[1725980910502,1.0151,2336.0,2335.9,0.42807]
[1725980911792,0.42804,2336.1,2335.7,0.21871333]
[1725980911995,0.5339,2336.2,2336.1,0.42804]
[1725980912293,0.5339,2336.2,2335.6,1.10426684]
[1725980912294,0.42804,2336.1,2335.6,1.10426684]
[1725980912599,0.42804,2336.1,2335.9,0.42806]
[1725980913201,0.42806,2336.0,2335.8,0.42808]
[1725980913390,0.42806,2336.0,2335.9,0.42807]
[1725980913794,0.5339,2336.2,2336.1,0.42804]
[1725980913795,0.96192,2336.2,2336.1,0.42804]
[1725980913998,0.42801,2336.3,2335.7,1.07028]
[1725980914197,1.46879,2336.4,2335.8,1.10426684]
[1725980914398,0.5008,2336.7,2336.4,0.42798]
[1725980914597,0.42796,2336.6,2336.4,0.42798]
[1725980914992,0.42797,2336.5,2336.3,0.42799]
[1725980915394,0.42797,2336.5,2336.4,0.42798]
[1725980915595,0.42797,2336.5,2336.3,0.42799]
[1725980915802,0.42801,2336.3,2336.1,0.42803]
[1725980915995,0.42801,2336.3,2336.1,0.42802]
[1725980916198,0.42801,2336.3,2336.2,0.42802]
[1725980916797,0.42803,2336.2,2336.0,0.42805]
[1725980917005,0.42803,2336.2,2336.1,0.42804]
[1725980917199,0.42801,2336.3,2336.1,0.42804]
[1725980917395,0.4945,2336.4,2336.1,0.42804]
[1725980917600,0.42803,2336.2,2336.0,0.42804]
[1725980917902,0.4945,2336.4,2335.7,2.70394684]
[1725980917903,0.42804,2336.1,2335.7,1.63366684]
[1725980918104,0.5083,2336.3,2335.6,1.10426684]
[1725980918294,0.42804,2336.1,2335.9,0.42806]
[1725980918693,0.42806,2336.0,2335.9,0.42806]
[1725980918904,1.07006,2336.2,2335.6,1.10426684]
[1725980919095,0.4935,2335.9,2335.4,1.10426684]
[1725980919405,0.4935,2335.9,2335.3,1.10426684]
[1725980919406,0.42811,2335.8,2335.3,1.10426684]
[1725980919602,0.4935,2335.9,2335.5,0.42814]
[1725980919907,0.4281,2335.8,2335.6,0.42813]
[1725980920703,0.92158,2335.9,2335.7,0.42811]
[1725980920907,0.42809,2335.8,2335.6,0.42812]
[1725980921211,0.68902,2335.7,2335.3,1.10426684]
[1725980921403,0.7667,2335.7,2335.3,1.10426684]
[1725980921701,0.42818,2335.4,2335.1,1.10426684]
[1725980921909,0.42816,2335.5,2335.1,1.10426684]
[1725980922105,0.42816,2335.5,2335.3,0.42818]
[1725980922304,1.19481,2335.7,2335.5,0.42814]
[1725980922497,1.19481,2335.7,2335.3,1.10426684]
[1725980922700,1.19481,2335.7,2335.5,0.42814]
[1725980923207,0.7667,2335.7,2335.2,1.10426684]
[1725980923504,0.42816,2335.5,2335.2,0.4282]
[1725980923703,0.42816,2335.5,2335.2,0.42819]
[1725980924003,0.7667,2335.7,2335.6,0.42813]
[1725980925092,0.2609,2335.7,2335.6,0.42813]
[1725980925298,0.2609,2335.7,2335.6,4.70973]
[1725980925499,1.06998,2336.4,2335.6,4.70973]
[1725980925500,4.144,2336.5,2336.4,0.42798]
[1725980925807,10.80470609,2337.1,2335.7,2.14056]
[1725980925808,0.5005,2336.7,2336.1,1.11103168]
[1725980926002,0.42795,2336.6,2336.1,42.33905168]
[1725980926505,2.06736,2336.7,2335.9,1.11103168]
[1725980926702,1.06992,2336.5,2335.9,1.11103168]
[1725980927009,0.42807,2336.0,2335.6,2.85056639]
[1725980927307,0.5005,2335.9,2335.6,1.73953471]
[1725980927612,0.92858,2335.9,2335.6,1.73953471]
[1725980928304,0.92858,2335.9,2335.6,2.85056639]
[1725980928713,0.92858,2335.9,2335.6,1.73953471]
[1725980931012,0.92858,2335.9,2335.5,1.53916168]
[1725980931211,0.92858,2335.9,2335.6,0.42813]
[1725980931408,0.5005,2335.9,2335.5,1.11103168]
[1725980931610,0.92859,2335.9,2335.6,1.11103168]
[1725980931805,0.5005,2335.9,2335.5,1.53917168]
[1725980932103,0.92859,2335.9,2335.6,0.42813]
[1725980933110,0.5005,2335.9,2335.8,0.42809]
[1725980934206,0.5005,2335.9,2335.7,1.53913168]
[1725980934509,0.5005,2335.9,2335.8,0.42809]
[1725980934712,0.5005,2335.9,2335.7,0.4281]
[1725980935115,0.92858,2335.9,2335.7,0.4281]
[1725980935815,0.4281,2335.8,2335.6,0.42812]
[1725980936229,0.4281,2335.8,2335.5,0.42813]
[1725980936402,0.4281,2335.8,2335.6,0.42813]
[1725980936914,0.5005,2335.9,2335.4,1.32385914]
[1725980937211,0.5005,2335.9,2335.8,0.42809]
[1725980937414,0.546,2336.2,2336.0,0.42805]
[1725980937718,0.42806,2336.1,2335.9,0.42806]
[1725980938016,0.546,2336.2,2335.7,1.11103168]
[1725980938203,0.42807,2336.0,2335.8,0.42809]
[1725980938403,0.42809,2335.8,2335.7,1.11103168]
[1725980938618,1.07012,2336.1,2335.7,1.11103168]
[1725980939019,0.42806,2336.0,2335.8,0.42809]
[1725980939321,0.42807,2335.9,2335.8,0.42809]
[1725980939611,0.546,2336.2,2335.7,1.11103168]
[1725980939820,1.61607,2336.2,2335.8,0.42809]
[1725980940012,0.42807,2335.9,2335.8,0.42809]
[1725980940209,0.42809,2335.8,2335.7,1.11103168]
[1725980940405,0.95459,2335.8,2335.7,1.11103168]
[1725980940808,0.5265,2335.8,2335.7,1.53914168]
[1725980941018,0.42805,2336.1,2335.9,0.42806]
[1725980941216,0.42806,2336.0,2335.9,0.42807]
[1725980941512,0.42809,2335.8,2335.7,1.11103168]
[1725980941710,1.49833,2335.8,2335.7,1.11103168]
[1725980941912,2.56879,2335.6,2335.5,1.66654752]
[1725980942313,12.85039,2335.6,2335.5,1.66654752]
[1725980942623,4.70973,2335.6,2335.5,1.66654752]
[1725980942817,0.42813,2335.6,2335.5,1.66654752]
[1725980943122,5.78006,2335.6,2335.5,1.66654752]
[1725980943713,0.42818,2335.4,2335.2,3.23108737]
[1725980943916,0.42818,2335.4,2335.3,1.09748859]
[1725980944217,0.5265,2335.7,2335.4,0.42817]
[1725980944422,0.5265,2335.7,2335.4,0.21755888]
[1725980944624,0.5265,2335.7,2335.3,0.42818]
[1725980944625,0.42816,2335.5,2335.3,0.42818]
[1725980944921,0.5265,2335.7,2335.6,0.42813]
[1725980945122,0.5265,2335.7,2335.6,1.09739229]
[1725980945423,1.60007,2336.2,2335.9,0.42806]
[1725980945424,0.42805,2336.1,2335.9,0.42806]
[1725980945623,0.97203,2336.2,2336.0,1.0971542]
[1725980945815,0.97203,2336.2,2336.0,0.42805]
[1725980946019,0.42804,2336.1,2335.9,0.42806]
[1725980946224,0.42804,2336.1,2336.0,0.66909605]
[1725980946820,0.97203,2336.2,2336.0,1.09714605]
[1725980947025,0.544,2336.2,2336.1,1.09713605]
[1725980947421,4.144,2336.6,2336.1,4.2808]
[1725980947616,0.42795,2336.6,2336.1,0.66905309]
[1725980947813,0.5337,2336.9,2336.3,0.42799]
[1725980947814,0.42794,2336.7,2336.3,0.42799]
[1725980948128,0.42796,2336.6,2336.4,0.66905309]
[1725980948326,0.42796,2336.6,2336.3,0.428]
[1725980948524,0.42796,2336.6,2336.4,0.66895769]
[1725980948819,0.42797,2336.5,2336.2,40.8]
[1725980949121,0.42798,2336.4,2336.3,0.66900565]
[1725980949423,0.42803,2336.2,2335.7,4.6798]
[1725980949731,3.7,2336.6,2335.7,4.6798]
[1725980949732,0.5315,2336.3,2335.8,42.53963296]
[1725980949922,0.5315,2336.3,2335.9,1.73963296]
[1725980950124,0.9595,2336.3,2336.0,1.73954389]
[1725980950323,0.9595,2336.3,2336.2,1.11336759]
[1725980950527,0.42802,2336.2,2336.1,1.11336759]
[1725980950728,0.42802,2336.2,2336.1,1.78244056]
[1725980950929,0.95951,2336.3,2336.1,1.11337938]
[1725980951925,0.42802,2336.2,2336.1,1.11337938]
[1725980952125,0.42804,2336.1,2336.0,1.11337938]
[1725980952324,1.47394,2336.1,2336.0,1.11337938]
[1725980952525,0.42806,2336.0,2335.8,1.67005139]
[1725980952726,0.42806,2336.0,2335.9,1.11338221]
[1725980953233,1.47394,2336.1,2335.9,2.41743467]
[1725980953418,1.47394,2336.1,2335.9,1.11338221]
[1725980953419,4.70886,2336.0,2335.9,1.11338221]
[1725980953622,4.70886,2336.0,2335.8,1.11338221]
[1725980953623,0.42807,2335.9,2335.8,1.11338221]
[1725980953822,4.70887,2335.9,2335.8,1.11338221]
[1725980954334,0.42809,2335.8,2335.7,1.67005139]
[1725980954534,4.70969,2335.8,2335.7,3.6439822]
[1725980955124,4.70969,2335.8,2335.7,1.78313792]
[1725980955325,4.70969,2335.8,2335.6,1.1139465]
[1725980955326,0.42811,2335.7,2335.6,1.1139465]
[1725980955533,0.96651,2335.7,2335.6,1.1139465]
[1725980955833,0.42813,2335.6,2335.5,1.1139465]
[1725980956032,0.5241,2335.6,2335.4,1.1139465]
[1725980956229,0.42815,2335.5,2335.4,1.1139465]
[1725980956639,0.5241,2335.6,2335.3,1.1139465]
[1725980956933,0.42817,2335.4,2335.3,1.1139465]
[1725980957130,1.49865,2335.3,2335.2,0.2313665]
[1725980957333,1.49865,2335.3,2334.9,0.2313665]
[1725980957334,0.42824,2335.0,2334.9,0.2313665]
[1725980957530,0.5154,2335.3,2334.9,1.97388676]
[1725980957730,6.34896143,2335.6,2335.0,0.66942106]
[1725980957936,0.42819,2335.3,2334.9,2.09830139]
[1725980958233,0.4282,2335.2,2335.0,3.64369992]
[1725980958443,0.42822,2335.1,2334.9,1.67005139]
[1725980958629,0.42822,2335.1,2334.8,1.67005139]
[1725980958630,0.95362,2335.1,2334.8,1.67005139]
[1725980958833,0.42825,2335.0,2334.9,0.6694248]
[1725980959036,1.0484,2335.0,2334.7,1.67005139]
[1725980959336,1.0484,2335.0,2334.6,1.67005139]
[1725980959337,0.42826,2334.9,2334.6,1.67005139]
[1725980959526,0.42826,2334.9,2334.7,1.96945547]
[1725980959727,1.0484,2335.0,2334.6,1.67005139]
[1725980959926,1.47665,2335.0,2334.7,0.66946442]
[1725980960135,1.47665,2335.0,2334.6,2.09836139]
[1725980960336,0.97015,2335.0,2334.7,0.66945818]
[1725980960527,0.5254,2335.1,2334.7,1.67005139]
[1725980960836,0.5419,2335.5,2334.8,1.96883446]
[1725980961037,0.42819,2335.3,2334.9,4.06700715]
[1725980961333,0.42821,2335.2,2334.8,2.09832139]
[1725980961535,1.6123,2335.5,2334.9,2.39683846]
[1725980961733,0.42818,2335.4,2335.0,0.66937277]